[Event "Early-Titled-Tuesday-Blitz-August-29-2023"]
[Site "Chess.com"]
[Date "2023.08.29"]
[Round "9"]
[White "pedromartinez91"]
[Black "amanjazu"]
[Result "1-0"]
[WhiteElo "2452"]
[BlackElo "2331"]
[TimeControl "180+1"]
[EndTime "9:40:21 PDT"]
[Termination "pedromartinez91 won by resignation"]

1. e4 {[%clk 0:02:59.2]} 1... d5 {[%clk 0:02:57.6]} 2. exd5 {[%clk 0:02:58.3]}
2... Nf6 {[%clk 0:02:58.3]} 3. d4 {[%clk 0:02:54.2]} 3... Bg4 {[%clk 0:02:57.3]}
4. Be2 {[%clk 0:02:53.4]} 4... Bxe2 {[%clk 0:02:56.9]} 5. Qxe2 {[%clk
0:02:52.2]} 5... Qxd5 {[%clk 0:02:51.1]} 6. Nf3 {[%clk 0:02:51.8]} 6... e6
{[%clk 0:02:49.9]} 7. O-O {[%clk 0:02:51.2]} 7... c6 {[%clk 0:02:43.4]} 8. c4
{[%clk 0:02:50.2]} 8... Qh5 {[%clk 0:02:35.6]} 9. Bf4 {[%clk 0:02:46]} 9... Nbd7
{[%clk 0:02:33.8]} 10. Nc3 {[%clk 0:02:44.3]} 10... Be7 {[%clk 0:02:31.6]} 11.
Rad1 {[%clk 0:02:43.6]} 11... Qg4 {[%clk 0:01:59.1]} 12. Bg3 {[%clk 0:02:37.2]}
12... O-O {[%clk 0:01:58.1]} 13. d5 {[%clk 0:02:36.6]} 13... cxd5 {[%clk
0:01:56.6]} 14. cxd5 {[%clk 0:02:36.6]} 14... Bb4 {[%clk 0:01:54]} 15. dxe6
{[%clk 0:02:35.5]} 15... Qxe6 {[%clk 0:01:53.2]} 16. Qxe6 {[%clk 0:02:30.7]}
16... fxe6 {[%clk 0:01:53.9]} 17. Nb5 {[%clk 0:02:31.6]} 17... Rfc8 {[%clk
0:01:37.9]} 18. Nc7 {[%clk 0:02:27.4]} 18... Rab8 {[%clk 0:01:28.7]} 19. Nxe6
{[%clk 0:02:26.3]} 19... Ra8 {[%clk 0:01:29]} 20. Nc7 {[%clk 0:02:26.2]} 20...
Rab8 {[%clk 0:01:29]} 21. Nd5 {[%clk 0:02:26.6]} 21... Nxd5 {[%clk 0:01:22.3]}
22. Bxb8 {[%clk 0:02:25.4]} 22... N5f6 {[%clk 0:01:17.5]} 23. Bxa7 {[%clk
0:02:21.7]} 23... Ra8 {[%clk 0:01:17.4]} 24. Bd4 {[%clk 0:02:21.3]} 24... Rxa2
{[%clk 0:01:13.7]} 25. Ra1 {[%clk 0:02:21.3]} 25... Rxa1 {[%clk 0:01:13.3]} 26.
Rxa1 {[%clk 0:02:22.2]} 26... Kf8 {[%clk 0:01:07.1]} 27. Ne5 {[%clk 0:02:19.8]}
27... Nxe5 {[%clk 0:01:05.9]} 28. Bxe5 {[%clk 0:02:20.1]} 28... Nd7 {[%clk
0:01:06.2]} 29. Bc3 {[%clk 0:02:18.4]} 29... Bc5 {[%clk 0:01:02.1]} 30. Rd1
{[%clk 0:02:14.7]} 30... Nb6 {[%clk 0:00:58.9]} 31. Rd8+ {[%clk 0:02:11.8]}
31... Ke7 {[%clk 0:00:57.7]} 32. Rb8 {[%clk 0:02:12.7]} 1-0

[Event "Early-Titled-Tuesday-Blitz-August-29-2023"]
[Site "Chess.com"]
[Date "2023.08.29"]
[Round "9"]
[White "MatthewG-p4p"]
[Black "Itk04"]
[Result "1/2-1/2"]
[WhiteElo "2842"]
[BlackElo "2676"]
[TimeControl "180+1"]
[EndTime "9:40:35 PDT"]
[Termination "Game drawn by repetition"]

1. f4 {[%clk 0:03:00.9]} 1... h6 {[%clk 0:02:58.1]} 2. Nf3 {[%clk 0:02:59.5]}
2... d5 {[%clk 0:02:51.5]} 3. g3 {[%clk 0:02:59.3]} 3... g5 {[%clk 0:02:51.1]}
4. fxg5 {[%clk 0:02:59.4]} 4... hxg5 {[%clk 0:02:52]} 5. Nxg5 {[%clk 0:02:57.7]}
5... e5 {[%clk 0:02:51.7]} 6. d3 {[%clk 0:02:53.3]} 6... Bh6 {[%clk 0:02:40.4]}
7. Nf3 {[%clk 0:02:48]} 7... Nc6 {[%clk 0:02:33.7]} 8. Bg2 {[%clk 0:02:41.8]}
8... Nf6 {[%clk 0:02:04.4]} 9. Bxh6 {[%clk 0:02:37.7]} 9... Rxh6 {[%clk
0:02:05.3]} 10. Nc3 {[%clk 0:02:37.5]} 10... d4 {[%clk 0:02:00.5]} 11. Ne4
{[%clk 0:02:26.1]} 11... Ng4 {[%clk 0:01:59.2]} 12. Qd2 {[%clk 0:02:19.2]} 12...
Ne3 {[%clk 0:01:59.1]} 13. Rg1 {[%clk 0:02:12.2]} 13... Bg4 {[%clk 0:01:48.9]}
14. Nf2 {[%clk 0:02:02.8]} 14... f5 {[%clk 0:01:29.1]} 15. h3 {[%clk 0:01:52.3]}
15... Bxf3 {[%clk 0:01:24.5]} 16. Bxf3 {[%clk 0:01:53.2]} 16... Nb4 {[%clk
0:01:12]} 17. Rc1 {[%clk 0:01:31.3]} 17... Nxa2 {[%clk 0:01:12.1]} 18. Ra1
{[%clk 0:01:31.1]} 18... Nb4 {[%clk 0:01:12.7]} 19. Rc1 {[%clk 0:01:31.7]} 19...
Na2 {[%clk 0:01:03.7]} 20. Ra1 {[%clk 0:01:28.3]} 20... Nb4 {[%clk 0:01:03.8]}
21. Rc1 {[%clk 0:01:28.2]} 21... Na2 {[%clk 0:00:50]} 1/2-1/2

[Event "Early-Titled-Tuesday-Blitz-August-29-2023"]
[Site "Chess.com"]
[Date "2023.08.29"]
[Round "9"]
[White "Frolyanov_D"]
[Black "GMBenjaminBok"]
[Result "0-1"]
[WhiteElo "2625"]
[BlackElo "2907"]
[TimeControl "180+1"]
[EndTime "9:40:43 PDT"]
[Termination "GMBenjaminBok won by resignation"]

1. d4 {[%clk 0:02:57.9]} 1... Nf6 {[%clk 0:03:00.1]} 2. c4 {[%clk 0:02:53.4]}
2... e6 {[%clk 0:03:00.4]} 3. Nf3 {[%clk 0:02:51.1]} 3... b6 {[%clk 0:03:00.8]}
4. a3 {[%clk 0:02:49.3]} 4... Bb7 {[%clk 0:03:00.9]} 5. Nc3 {[%clk 0:02:49.1]}
5... d5 {[%clk 0:03:00.7]} 6. cxd5 {[%clk 0:02:49.9]} 6... Nxd5 {[%clk
0:03:01.2]} 7. Qc2 {[%clk 0:02:50.3]} 7... Nxc3 {[%clk 0:03:01]} 8. bxc3 {[%clk
0:02:49.5]} 8... Nd7 {[%clk 0:03:01]} 9. e4 {[%clk 0:02:49.5]} 9... c5 {[%clk
0:03:00.3]} 10. Bd3 {[%clk 0:02:49.2]} 10... Qc7 {[%clk 0:03:00.2]} 11. Qe2
{[%clk 0:02:46]} 11... cxd4 {[%clk 0:03:00.1]} 12. O-O {[%clk 0:02:42.6]} 12...
dxc3 {[%clk 0:02:58.2]} 13. Rd1 {[%clk 0:02:30.5]} 13... Be7 {[%clk 0:02:41.4]}
14. Bb5 {[%clk 0:02:24.7]} 14... Rd8 {[%clk 0:02:39.9]} 15. Bg5 {[%clk
0:01:22.6]} 15... Bxg5 {[%clk 0:02:36.3]} 16. Nxg5 {[%clk 0:01:22]} 16... O-O
{[%clk 0:02:35.5]} 17. Rd3 {[%clk 0:00:35.6]} 17... h6 {[%clk 0:02:23.8]} 18.
Rh3 {[%clk 0:00:29.2]} 18... Ne5 {[%clk 0:02:02.6]} 19. f4 {[%clk 0:00:22]}
19... Qc5+ {[%clk 0:01:58.8]} 20. Kh1 {[%clk 0:00:19.7]} 20... Rd2 {[%clk
0:01:57.9]} 21. Qe1 {[%clk 0:00:11.6]} 21... Ng4 {[%clk 0:01:56.6]} 0-1

[Event "Early-Titled-Tuesday-Blitz-August-29-2023"]
[Site "Chess.com"]
[Date "2023.08.29"]
[Round "9"]
[White "Romkachess"]
[Black "PeshkaCh"]
[Result "0-1"]
[WhiteElo "2547"]
[BlackElo "2786"]
[TimeControl "180+1"]
[EndTime "9:41:00 PDT"]
[Termination "PeshkaCh won by resignation"]

1. e4 {[%clk 0:02:54.2]} 1... e5 {[%clk 0:03:00.6]} 2. d4 {[%clk 0:02:45.2]}
2... exd4 {[%clk 0:02:59.3]} 3. Qxd4 {[%clk 0:02:46.1]} 3... Nc6 {[%clk
0:02:57.4]} 4. Qe3 {[%clk 0:02:44.3]} 4... g6 {[%clk 0:02:56.9]} 5. Nc3 {[%clk
0:02:43.5]} 5... Bg7 {[%clk 0:02:57.1]} 6. Bd2 {[%clk 0:02:43.3]} 6... Nf6
{[%clk 0:02:56.8]} 7. O-O-O {[%clk 0:02:42.7]} 7... O-O {[%clk 0:02:57.4]} 8.
Bc4 {[%clk 0:02:38.6]} 8... d6 {[%clk 0:02:47]} 9. f3 {[%clk 0:02:37.1]} 9...
Be6 {[%clk 0:02:41]} 10. Bb3 {[%clk 0:02:36.7]} 10... Bxb3 {[%clk 0:02:40]} 11.
axb3 {[%clk 0:02:36.2]} 11... Re8 {[%clk 0:02:22.2]} 12. Qf2 {[%clk 0:02:30.4]}
12... a5 {[%clk 0:02:06.1]} 13. h4 {[%clk 0:01:57]} 13... a4 {[%clk 0:02:02.7]}
14. bxa4 {[%clk 0:01:51.5]} 14... b5 {[%clk 0:01:39.3]} 15. axb5 {[%clk
0:01:49.1]} 15... Ra1+ {[%clk 0:01:38.4]} 16. Nb1 {[%clk 0:01:48.8]} 16... Qa8
{[%clk 0:01:32.2]} 17. Ne2 {[%clk 0:01:11.6]} 17... Qa2 {[%clk 0:01:31.4]} 18.
Nc3 {[%clk 0:00:47.6]} 18... Rxb1+ {[%clk 0:01:28.8]} 19. Nxb1 {[%clk
0:00:48.5]} 19... Nxe4 {[%clk 0:01:29.1]} 0-1

[Event "Early-Titled-Tuesday-Blitz-August-29-2023"]
[Site "Chess.com"]
[Date "2023.08.29"]
[Round "9"]
[White "jinbojinbo"]
[Black "denizozen"]
[Result "0-1"]
[WhiteElo "2681"]
[BlackElo "2863"]
[TimeControl "180+1"]
[EndTime "9:41:05 PDT"]
[Termination "denizozen won on time"]

1. e4 {[%clk 0:03:00.9]} 1... e5 {[%clk 0:03:00.4]} 2. Nf3 {[%clk 0:03:00]} 2...
Nf6 {[%clk 0:03:01.2]} 3. Nxe5 {[%clk 0:03:00]} 3... d5 {[%clk 0:03:01.9]} 4.
exd5 {[%clk 0:02:52.3]} 4... Qxd5 {[%clk 0:03:02.8]} 5. d4 {[%clk 0:02:48.1]}
5... Nc6 {[%clk 0:03:03.2]} 6. Nxc6 {[%clk 0:02:36.7]} 6... Qxc6 {[%clk
0:03:04.1]} 7. Nc3 {[%clk 0:02:28.4]} 7... Bb4 {[%clk 0:03:04.1]} 8. Qe2+ {[%clk
0:02:22.4]} 8... Kd8 {[%clk 0:03:03.6]} 9. Qc4 {[%clk 0:02:01.1]} 9... Qe4+
{[%clk 0:02:10.4]} 10. Be3 {[%clk 0:01:54]} 10... Bxc3+ {[%clk 0:02:08.5]} 11.
Qxc3 {[%clk 0:01:49.5]} 11... Re8 {[%clk 0:02:02.9]} 12. Bd3 {[%clk 0:01:16.8]}
12... Qxg2 {[%clk 0:01:53]} 13. O-O-O {[%clk 0:01:16.8]} 13... Nd5 {[%clk
0:01:53.4]} 14. Qb3 {[%clk 0:01:16.3]} 14... Nxe3 {[%clk 0:01:49.4]} 15. fxe3
{[%clk 0:01:16.4]} 15... Be6 {[%clk 0:01:35.1]} 0-1

[Event "Early-Titled-Tuesday-Blitz-August-29-2023"]
[Site "Chess.com"]
[Date "2023.08.29"]
[Round "9"]
[White "TC2304"]
[Black "VOneChess"]
[Result "1-0"]
[WhiteElo "2409"]
[BlackElo "2128"]
[TimeControl "180+1"]
[EndTime "9:41:17 PDT"]
[Termination "TC2304 won by checkmate"]

1. c4 {[%clk 0:03:00.9]} 1... e5 {[%clk 0:02:58.7]} 2. g3 {[%clk 0:03:01.3]}
2... Nc6 {[%clk 0:02:58.4]} 3. Bg2 {[%clk 0:03:01.9]} 3... f5 {[%clk 0:02:59.2]}
4. Nc3 {[%clk 0:03:01.4]} 4... Nf6 {[%clk 0:02:59.6]} 5. Nd5 {[%clk 0:03:01.7]}
5... Bc5 {[%clk 0:02:47.2]} 6. d3 {[%clk 0:02:59]} 6... O-O {[%clk 0:02:46.5]}
7. Bg5 {[%clk 0:02:52.8]} 7... Bxf2+ {[%clk 0:02:44.1]} 8. Kf1 {[%clk
0:02:52.1]} 8... Bc5 {[%clk 0:02:08.3]} 9. Nxf6+ {[%clk 0:02:51.7]} 9... gxf6
{[%clk 0:02:09.2]} 10. Bh6 {[%clk 0:02:52.4]} 10... Re8 {[%clk 0:02:01.3]} 11.
Bd5+ {[%clk 0:02:49]} 11... Kh8 {[%clk 0:02:01.6]} 12. e4 {[%clk 0:02:38.5]}
12... d6 {[%clk 0:01:44.7]} 13. Qh5 {[%clk 0:02:28.8]} 13... Qe7 {[%clk
0:01:40.8]} 14. Nf3 {[%clk 0:02:16.1]} 14... fxe4 {[%clk 0:01:26.4]} 15. Nh4
{[%clk 0:01:51.8]} 15... Bh3+ {[%clk 0:01:14.6]} 16. Ke1 {[%clk 0:01:47.2]}
16... Nd4 {[%clk 0:00:53.1]} 17. Bf8 {[%clk 0:01:39.3]} 17... Nf3+ {[%clk
0:00:05.7]} 18. Kd1 {[%clk 0:01:35.4]} 18... Qxf8 {[%clk 0:00:01.4]} 19. Ng6+
{[%clk 0:01:35.3]} 19... Kg7 {[%clk 0:00:01.9]} 20. Nxf8 {[%clk 0:01:36]} 20...
Bg2 {[%clk 0:00:01]} 21. Qxh7+ {[%clk 0:01:33.7]} 21... Kxf8 {[%clk 0:00:01.5]}
22. Qf7# {[%clk 0:01:34.3]} 1-0

[Event "Early-Titled-Tuesday-Blitz-August-29-2023"]
[Site "Chess.com"]
[Date "2023.08.29"]
[Round "9"]
[White "rikchessmx"]
[Black "Ramosha"]
[Result "0-1"]
[WhiteElo "2461"]
[BlackElo "2590"]
[TimeControl "180+1"]
[EndTime "9:41:21 PDT"]
[Termination "Ramosha won by resignation"]

1. e4 {[%clk 0:02:52.6]} 1... c6 {[%clk 0:02:59.9]} 2. d4 {[%clk 0:02:52.4]}
2... d5 {[%clk 0:03:00.8]} 3. Nc3 {[%clk 0:02:52.9]} 3... dxe4 {[%clk
0:03:01.6]} 4. Nxe4 {[%clk 0:02:53.8]} 4... Nf6 {[%clk 0:03:02.4]} 5. Ng5 {[%clk
0:02:53.9]} 5... h6 {[%clk 0:03:02.4]} 6. N5f3 {[%clk 0:02:54]} 6... c5 {[%clk
0:03:02.9]} 7. Bc4 {[%clk 0:02:52.8]} 7... Nc6 {[%clk 0:03:01.9]} 8. d5 {[%clk
0:02:48.7]} 8... Na5 {[%clk 0:03:00.5]} 9. Bb5+ {[%clk 0:02:48.6]} 9... Bd7
{[%clk 0:03:00.5]} 10. Bxd7+ {[%clk 0:02:44.5]} 10... Qxd7 {[%clk 0:03:01.4]}
11. Qd2 {[%clk 0:02:38.9]} 11... b6 {[%clk 0:02:54.9]} 12. Ne2 {[%clk
0:02:31.5]} 12... Qxd5 {[%clk 0:02:54.4]} 13. Qf4 {[%clk 0:02:29.5]} 13... O-O-O
{[%clk 0:02:50.5]} 14. O-O {[%clk 0:02:28.7]} 14... g5 {[%clk 0:02:50.4]} 15.
Qe3 {[%clk 0:02:13.4]} 15... Qe4 {[%clk 0:02:47]} 16. Nc3 {[%clk 0:02:12.6]}
16... Qxe3 {[%clk 0:02:46.9]} 17. Bxe3 {[%clk 0:02:13.5]} 17... Bg7 {[%clk
0:02:44.8]} 18. Nb5 {[%clk 0:02:12.6]} 18... Kb7 {[%clk 0:02:44.4]} 19. Rae1
{[%clk 0:01:59.5]} 19... e6 {[%clk 0:02:42.8]} 20. b3 {[%clk 0:01:58.2]} 20...
a6 {[%clk 0:02:41.9]} 21. Na3 {[%clk 0:01:56.1]} 21... Nd5 {[%clk 0:02:40.3]}
22. Bd2 {[%clk 0:01:54.7]} 22... Nc6 {[%clk 0:02:40.3]} 23. Nc4 {[%clk
0:01:52.2]} 23... b5 {[%clk 0:02:40]} 24. Na5+ {[%clk 0:01:46.7]} 24... Nxa5
{[%clk 0:02:39.8]} 25. Bxa5 {[%clk 0:01:47.2]} 25... Rd7 {[%clk 0:02:38.7]} 26.
Ne5 {[%clk 0:01:46.8]} 26... Bxe5 {[%clk 0:02:37.6]} 27. Rxe5 {[%clk 0:01:46.1]}
27... Re8 {[%clk 0:02:35.1]} 28. c4 {[%clk 0:01:45.8]} 28... f6 {[%clk 0:02:32]}
29. Re4 {[%clk 0:01:37.2]} 29... Nf4 {[%clk 0:02:29.1]} 30. g3 {[%clk
0:01:28.2]} 30... Nd3 {[%clk 0:02:28.1]} 31. h4 {[%clk 0:01:23.1]} 31... Kc6
{[%clk 0:02:26.6]} 32. Rd1 {[%clk 0:01:17.7]} 32... b4 {[%clk 0:02:25.4]} 33.
Ra1 {[%clk 0:01:04.8]} 33... f5 {[%clk 0:02:20.7]} 34. Re3 {[%clk 0:01:02.4]}
34... gxh4 {[%clk 0:02:20.6]} 35. gxh4 {[%clk 0:01:01.2]} 35... Rg8+ {[%clk
0:02:18.5]} 36. Kh2 {[%clk 0:01:01]} 36... e5 {[%clk 0:02:17]} 37. Rf3 {[%clk
0:00:51.6]} 37... Rd4 {[%clk 0:02:14.2]} 38. Kh3 {[%clk 0:00:37.5]} 38... Rdg4
{[%clk 0:02:05]} 39. Rxf5 {[%clk 0:00:36.9]} 39... Nf4+ {[%clk 0:02:04.9]} 40.
Rxf4 {[%clk 0:00:34.1]} 40... Rxf4 {[%clk 0:02:05.8]} 41. Re1 {[%clk 0:00:30.8]}
41... Rf3+ {[%clk 0:02:05.8]} 42. Kh2 {[%clk 0:00:30.1]} 42... Rxf2+ {[%clk
0:02:06.4]} 43. Kh3 {[%clk 0:00:30.5]} 43... Rf3+ {[%clk 0:02:06.5]} 44. Kh2
{[%clk 0:00:30.3]} 44... Rf4 {[%clk 0:02:05.9]} 45. Kh3 {[%clk 0:00:29.2]} 45...
e4 {[%clk 0:02:06.1]} 46. a3 {[%clk 0:00:26.3]} 46... bxa3 {[%clk 0:02:05.6]}
47. Bd2 {[%clk 0:00:25.9]} 47... Rf3+ {[%clk 0:02:05.6]} 0-1

[Event "Early-Titled-Tuesday-Blitz-August-29-2023"]
[Site "Chess.com"]
[Date "2023.08.29"]
[Round "9"]
[White "jerry_77"]
[Black "DawidCzerw"]
[Result "1-0"]
[WhiteElo "2635"]
[BlackElo "2492"]
[TimeControl "180+1"]
[EndTime "9:41:22 PDT"]
[Termination "jerry_77 won by checkmate"]

1. e4 {[%clk 0:03:00.9]} 1... c5 {[%clk 0:03:00.1]} 2. Nf3 {[%clk 0:03:00]} 2...
Nc6 {[%clk 0:03:00.6]} 3. Nc3 {[%clk 0:02:57.8]} 3... g6 {[%clk 0:03:00.5]} 4.
d4 {[%clk 0:02:52.1]} 4... cxd4 {[%clk 0:03:01.4]} 5. Nxd4 {[%clk 0:02:53]} 5...
Bg7 {[%clk 0:03:01.7]} 6. Be3 {[%clk 0:02:51.3]} 6... Nf6 {[%clk 0:03:02.3]} 7.
Bc4 {[%clk 0:02:51]} 7... O-O {[%clk 0:03:02.5]} 8. Bb3 {[%clk 0:02:51.3]} 8...
Re8 {[%clk 0:03:02.3]} 9. f4 {[%clk 0:02:41.9]} 9... d6 {[%clk 0:02:29.3]} 10.
h3 {[%clk 0:02:36.6]} 10... e6 {[%clk 0:02:27.2]} 11. Qd2 {[%clk 0:02:26.7]}
11... d5 {[%clk 0:02:24.7]} 12. e5 {[%clk 0:02:26.4]} 12... Nd7 {[%clk 0:02:23]}
13. O-O-O {[%clk 0:02:26.3]} 13... Nxd4 {[%clk 0:02:18.8]} 14. Bxd4 {[%clk
0:02:25.8]} 14... b6 {[%clk 0:02:19.3]} 15. Nb5 {[%clk 0:02:24.5]} 15... Nc5
{[%clk 0:02:15.7]} 16. Nd6 {[%clk 0:02:22.8]} 16... Re7 {[%clk 0:02:16]} 17. Kb1
{[%clk 0:02:20.5]} 17... a5 {[%clk 0:02:12.7]} 18. c3 {[%clk 0:02:16.1]} 18...
Nb7 {[%clk 0:01:55.5]} 19. Nxc8 {[%clk 0:02:06]} 19... Rxc8 {[%clk 0:01:54]} 20.
Qe3 {[%clk 0:02:05.6]} 20... Nc5 {[%clk 0:01:52.7]} 21. Bc2 {[%clk 0:02:06]}
21... Rec7 {[%clk 0:01:48]} 22. g4 {[%clk 0:02:05.4]} 22... b5 {[%clk 0:01:48]}
23. f5 {[%clk 0:02:02.4]} 23... b4 {[%clk 0:01:45.9]} 24. cxb4 {[%clk
0:02:02.5]} 24... axb4 {[%clk 0:01:45]} 25. h4 {[%clk 0:02:00.7]} 25... b3
{[%clk 0:01:19.9]} 26. Bxb3 {[%clk 0:01:57.5]} 26... Nxb3 {[%clk 0:01:18.1]} 27.
axb3 {[%clk 0:01:58.1]} 27... Rb7 {[%clk 0:01:15.4]} 28. Rc1 {[%clk 0:01:55.9]}
28... Ra8 {[%clk 0:01:14.2]} 29. Rc3 {[%clk 0:01:55.3]} 29... Qa5 {[%clk
0:01:11.5]} 30. Kc2 {[%clk 0:01:55.3]} 30... Bf8 {[%clk 0:01:07.5]} 31. Bc5
{[%clk 0:01:55.1]} 31... Bxc5 {[%clk 0:00:57.6]} 32. Qxc5 {[%clk 0:01:55.1]}
32... Qa6 {[%clk 0:00:56]} 33. Re1 {[%clk 0:01:46.3]} 33... Rab8 {[%clk
0:00:48.8]} 34. f6 {[%clk 0:01:42.5]} 34... Rb5 {[%clk 0:00:41.9]} 35. Qc7
{[%clk 0:01:37.7]} 35... R5b7 {[%clk 0:00:33.3]} 36. Qc8+ {[%clk 0:01:36.8]}
36... Rxc8 {[%clk 0:00:23.2]} 37. Rxc8# {[%clk 0:01:37.7]} 1-0

[Event "Early-Titled-Tuesday-Blitz-August-29-2023"]
[Site "Chess.com"]
[Date "2023.08.29"]
[Round "9"]
[White "likantrophuss"]
[Black "MatyChess1"]
[Result "1-0"]
[WhiteElo "2584"]
[BlackElo "2673"]
[TimeControl "180+1"]
[EndTime "9:41:23 PDT"]
[Termination "likantrophuss won by resignation"]

1. d4 {[%clk 0:03:00.9]} 1... d5 {[%clk 0:02:59.8]} 2. c4 {[%clk 0:02:58.8]}
2... e6 {[%clk 0:02:59.6]} 3. Nf3 {[%clk 0:02:58.8]} 3... a6 {[%clk 0:03:00]} 4.
Nbd2 {[%clk 0:02:56.5]} 4... Nf6 {[%clk 0:02:59.3]} 5. g3 {[%clk 0:02:55.8]}
5... c5 {[%clk 0:02:57.5]} 6. cxd5 {[%clk 0:02:55.8]} 6... exd5 {[%clk 0:02:57]}
7. Bg2 {[%clk 0:02:55.7]} 7... Nc6 {[%clk 0:02:57.3]} 8. O-O {[%clk 0:02:55.5]}
8... c4 {[%clk 0:02:46.8]} 9. b3 {[%clk 0:02:55.4]} 9... b5 {[%clk 0:02:41.8]}
10. Ne5 {[%clk 0:02:44.6]} 10... Nxd4 {[%clk 0:02:20.6]} 11. Ndxc4 {[%clk
0:02:43.8]} 11... dxc4 {[%clk 0:01:42.8]} 12. Bxa8 {[%clk 0:02:41.2]} 12... Bh3
{[%clk 0:01:43.3]} 13. Bg2 {[%clk 0:02:33.1]} 13... Bxg2 {[%clk 0:01:43.2]} 14.
Kxg2 {[%clk 0:02:34]} 14... c3 {[%clk 0:01:23.2]} 15. Nf3 {[%clk 0:02:26.2]}
15... Nxf3 {[%clk 0:01:14.9]} 16. Qxd8+ {[%clk 0:02:25.9]} 16... Kxd8 {[%clk
0:01:15.8]} 17. Kxf3 {[%clk 0:02:26.7]} 17... Kc8 {[%clk 0:00:51.5]} 18. a3
{[%clk 0:02:25.9]} 18... Nd7 {[%clk 0:00:48]} 19. Bf4 {[%clk 0:02:15.7]} 19...
Be7 {[%clk 0:00:45.2]} 20. Rac1 {[%clk 0:02:09.7]} 20... Bf6 {[%clk 0:00:38.2]}
21. Bd2 {[%clk 0:02:01.3]} 21... Kb7 {[%clk 0:00:28.6]} 22. Bxc3 {[%clk
0:02:01]} 22... Bxc3 {[%clk 0:00:21.1]} 23. Rxc3 {[%clk 0:02:01]} 23... Ne5+
{[%clk 0:00:22]} 24. Kg2 {[%clk 0:02:00.8]} 24... Re8 {[%clk 0:00:22.9]} 25. e3
{[%clk 0:01:59.3]} 25... g5 {[%clk 0:00:22.4]} 26. h3 {[%clk 0:01:58.8]} 26...
h5 {[%clk 0:00:21.3]} 27. f4 {[%clk 0:01:50.4]} 27... gxf4 {[%clk 0:00:20.9]}
28. gxf4 {[%clk 0:01:50.8]} 28... Nd7 {[%clk 0:00:17.1]} 29. Rfc1 {[%clk
0:01:47.8]} 29... Nf6 {[%clk 0:00:14.5]} 30. Rc7+ {[%clk 0:01:47.5]} 30... Kb6
{[%clk 0:00:15]} 31. R7c6+ {[%clk 0:01:47.1]} 31... Ka5 {[%clk 0:00:14.2]} 32.
Rxf6 {[%clk 0:01:37.1]} 1-0

[Event "Early-Titled-Tuesday-Blitz-August-29-2023"]
[Site "Chess.com"]
[Date "2023.08.29"]
[Round "9"]
[White "AlexNovitz"]
[Black "GMForgacs"]
[Result "0-1"]
[WhiteElo "2250"]
[BlackElo "2438"]
[TimeControl "180+1"]
[EndTime "9:41:27 PDT"]
[Termination "GMForgacs won by resignation"]

1. e4 {[%clk 0:03:00.9]} 1... e5 {[%clk 0:02:59.2]} 2. Nf3 {[%clk 0:03:00.6]}
2... Nc6 {[%clk 0:02:58.9]} 3. Bb5 {[%clk 0:03:00.4]} 3... a6 {[%clk 0:02:59]}
4. Ba4 {[%clk 0:03:00.2]} 4... Nf6 {[%clk 0:02:58]} 5. O-O {[%clk 0:02:59.8]}
5... Be7 {[%clk 0:02:57.3]} 6. Re1 {[%clk 0:02:59.1]} 6... b5 {[%clk 0:02:57.7]}
7. Bb3 {[%clk 0:02:59.5]} 7... O-O {[%clk 0:02:58.6]} 8. c3 {[%clk 0:02:59.8]}
8... d5 {[%clk 0:02:59.2]} 9. exd5 {[%clk 0:02:59.8]} 9... Nxd5 {[%clk
0:03:00.1]} 10. Nxe5 {[%clk 0:03:00]} 10... Nxe5 {[%clk 0:03:01]} 11. Rxe5
{[%clk 0:02:59.9]} 11... c6 {[%clk 0:03:01.8]} 12. d4 {[%clk 0:02:59.9]} 12...
Bd6 {[%clk 0:03:02.1]} 13. Re1 {[%clk 0:02:59.8]} 13... Qh4 {[%clk 0:03:02.8]}
14. g3 {[%clk 0:03:00]} 14... Qh3 {[%clk 0:03:03.5]} 15. Be3 {[%clk 0:02:57.2]}
15... Bg4 {[%clk 0:03:03.7]} 16. Qd3 {[%clk 0:02:57.3]} 16... f5 {[%clk
0:03:03.6]} 17. Qf1 {[%clk 0:02:51.3]} 17... Qh5 {[%clk 0:03:03.4]} 18. Bxd5+
{[%clk 0:02:48.2]} 18... cxd5 {[%clk 0:03:03.2]} 19. Nd2 {[%clk 0:02:48.9]}
19... f4 {[%clk 0:03:01.1]} 20. Bxf4 {[%clk 0:02:43.7]} 20... Rxf4 {[%clk
0:02:58.2]} 21. gxf4 {[%clk 0:02:44.6]} 21... Bxf4 {[%clk 0:02:58.8]} 22. Qg2
{[%clk 0:02:15.1]} 22... Bxd2 {[%clk 0:02:52.3]} 23. Re5 {[%clk 0:02:15.7]}
23... Qg6 {[%clk 0:02:52.5]} 24. Qxd5+ {[%clk 0:01:47.5]} 24... Be6+ {[%clk
0:02:52.2]} 25. Qg2 {[%clk 0:01:48.2]} 25... Qxg2+ {[%clk 0:02:32.6]} 26. Kxg2
{[%clk 0:01:49.1]} 26... Bc4 {[%clk 0:02:33.2]} 27. Rd1 {[%clk 0:01:30.5]} 27...
Bf4 {[%clk 0:02:31.7]} 28. Rf5 {[%clk 0:01:15.6]} 28... g5 {[%clk 0:02:31.6]}
29. b3 {[%clk 0:01:04.2]} 29... Be6 {[%clk 0:02:30.4]} 30. Rc5 {[%clk
0:00:57.9]} 30... Bd6 {[%clk 0:02:28.5]} 31. Rxg5+ {[%clk 0:00:54.6]} 31... Kf7
{[%clk 0:02:25.1]} 32. Kg1 {[%clk 0:00:32]} 32... Bf4 {[%clk 0:02:21.7]} 33. Rc5
{[%clk 0:00:29.6]} 33... Rg8+ {[%clk 0:02:19]} 34. Kf1 {[%clk 0:00:28.1]} 34...
Bxh2 {[%clk 0:02:10.4]} 35. Rd3 {[%clk 0:00:24.5]} 35... Ke7 {[%clk 0:01:56.3]}
36. Rh5 {[%clk 0:00:20.6]} 36... Rg1+ {[%clk 0:01:54]} 37. Ke2 {[%clk
0:00:17.9]} 37... Bg4+ {[%clk 0:01:54.9]} 38. f3 {[%clk 0:00:18.4]} 38... Bxh5
{[%clk 0:01:55]} 39. Re3+ {[%clk 0:00:19]} 39... Kd6 {[%clk 0:01:54.4]} 40. Kf2
{[%clk 0:00:19.6]} 40... Rg7 {[%clk 0:01:52]} 41. Re5 {[%clk 0:00:19.9]} 41...
Bxe5 {[%clk 0:01:51.5]} 42. dxe5+ {[%clk 0:00:20.8]} 42... Kxe5 {[%clk
0:01:52.1]} 0-1